Workbook

Sheet Decode (hidden)
A1: Kods | B1: Lv
A2: tris | B2: trīs
A3: cetri | B3: četri
A4: sesi | B4: seši
A5: septini | B5: septiņi
A6: astoni | B6: astoņi
A7: devini | B7: deviņi
A8: trispadsmit | B8: trīspadsmit
A9: cetrpadsmit | B9: četrpadsmit
A10: sespadsmit | B10: sešpadsmit
A11: septinpadsmit | B11: septiņpadsmit
A12: astonpadsmit | B12: astoņpadsmit
A13: devinpadsmit | B13: deviņpadsmit
A14: devinpadsmit | B14: deviņpadsmit
A15: trisdesmit | B15: trīsdesmit
A16: cetrdesmit | B16: četrdesmit
A17: sesdesmit | B17: sešdesmit
A18: septindesmit | B18: septiņdesmit
A19: astondesmit | B19: astoņdesmit
A20: devindesmit | B20: deviņdesmit
A21: tukstotis | B21: tūkstotis
A22: tukstosi | B22: tūkstoši

Sheet Instrukcija
B3: Kā ieslēgt makrosus: | D3: https://exceldarbariki.mozello.lv/produkti/instrukcijas/
B4: Kā atbloķēt makrosus: | D4: https://exceldarbariki.mozello.lv/produkti/ka-atbloket-makrosus/

Sheet Preces
A1: Nr.p.k. | B1: Preces nosaukums | C1: EUR bez PVN
A2: 1 | B2: ... | C2: 1.7
A3: 2 | B3: ... | C3: 2

Sheet Iestādes
A1: Nr.p.k. | B1: Iestāde | C1: Adrese | D1: Kontaktpersona | E1: Tālrunis | F1: e-pasts
A2: 1 | B2: Pašvaldības ... | C2: ... | D2: ... | E2: ... | F2: ...
A3: 2 | B3: ... vidusskola | C3: ... | D3: ... | E3: ... | F3: ...

Sheet Transports
A1: Nr.p.k. | B1: Transports | C1: Vadītājs
A2: 1 | B2: ... | C2: ...
A3: 2 | B3: - | C3: -
A4: 3
A5: 4

Sheet eRēķins
G2: PAVADZĪME | H2: MKZ 000001 | M2: [Rekina numurs]: | N2: =H2 -> MKZ 000001 | Q2: [Rekina datums]: | R2: =B4 -> 2025-05-05 | U2: Kolonnās M:N ir salikta informācija ar formulām no pamata rēķina. Pamatojoties uz šo diapazonu, tiks izveidots e-rēķins XML, kuru var augšupielādēt latvija.lv, rakstot jaunu vēstuli un izvēloties veidlapu "e-rēķins". Ja nepieciešams, šī diapazona formulas var palabot, piemēram "Piezīmes" lai būtu atspoguļota aktuāla informācija.
M3: [Atsauce uz ligumu]: | N3: =D21 -> Līguma Nr. .../2024/5 | Q3: [Samaksas termins]: | R3: =H22 -> 2025-05-20
B4: =TODAY() -> 2025-05-05
B6: Piegādātājs | D6: SIA ... | F6: Reģ. Nr. | G6: ... | M6: [Piegadatajs]: | N6: =D6 -> SIA ... | Q6: [Reg. Nr.1]: | R6: =G6 -> ...
B7: Juridiskā adrese | D7: ... | F7: PVN Nr. | G7: ... | M7: [Jur. adrese1]: | N7: =D7 -> ... | Q7: [PVN Nr.1]: | R7: =G7 -> ...
B8: Kredītiestādes nosaukums | D8: ... | F8: Kods | G8: ... | Q8: [Valsts kods1]: | R8: =LEFT(R7,2) -> ..
B9: Preču izsniegšanas adrese | D9: ... | F9: konta Nr. | G9: ... | M9: [Bankas konts1]: | N9: =G9 -> ... | Q9: [Bankas kods1]: | R9: =G8 -> ...
B11: Maksātājs | D11: ... pašvaldība | F11: Reģ. Nr. | G11: ... | M11: [Pasutitajs]: | N11: =D11 -> ... pašvaldība | Q11: [Reg. Nr.2]: | R11: =G11 -> ...
B12: Juridiskā adrese | D12: ... | F12: PVN Nr. | G12: ... | M12: [Jur. adrese2]: | N12: =D12 -> ... | Q12: [PVN Nr.2]: | R12: =G12 -> ...
B13: Faktiskā adrese | D13: =D12 -> ... | F13: Kods | G13: ... | Q13: [Valsts kods2]: | R13: =LEFT(R12,2) -> ..
B14: Kredītiestādes nosaukums | D14: .... | F14: konta Nr. | G14: ... | M14: [Bankas konts2]: | N14: =G14 -> ... | Q14: [Bankas kods2]: | R14: =G13 -> ...
B15: Preču saņēmējs | F15: Kontaktpersona: | H15: =IFERROR(VLOOKUP(D15,Iestādes!B2:D3,3,0),"- - -") -> - - -
B17: Preču saņemšanas adrese | D17: =IFERROR(VLOOKUP(D15,Iestādes!B2:C3,2,0),"- - -") -> - - - | F17: E-pasts: | G17: =IFERROR(VLOOKUP(D15,Iestādes!B2:F3,5,0),"- - -") -> - - - | M17: [Piezimes]: | N17: =B15&": "&D15&CHAR(10)&F15&" "&H15& "; "&F17&" "&G17 -> Preču saņēmējs: Kontaktpersona: - - -; E-pasts: - - -
B19: Preču pārvadātājs
B20: Transportlīdzekļa valsts Nr. | D20: - | E20: Autovadītājs | G20: =VLOOKUP(D20,Transports!B2:C3,2,0) -> -
B21: Piezīmes | D21: Līguma Nr. .../2024/5
B22: Maksājuma veids: | D22: Pārskaitījums | E22: Apmaksas termiņš: | H22: =B4+15 -> 2025-05-20
B25: Nr. | C25: Nosaukums | E25: Mērv. | F25: Daudz. | G25: Cena | H25: Atlaide | I25: Summa | M25: [Nr.]: | N25: [Nosaukums]: | O25: [Daudz.]: | P25: [Mērv.]: | Q25: [Cena]: | R25: [Atlaide]: | S25: [Summa]:
B26: 1. | C26: ... | E26: gab. | F26: 11 | G26: 2.3 | I26: =IFERROR((F26*G26)*(1-H26), "") -> 25.3 | M26: 1 | N26: =IF(O26="","",C26) -> ... | O26: =IF(ROUND(F26,2)=0,"",ROUND(F26,2)) -> 11 | P26: =IF(O26="","",E26) -> gab. | Q26: =IF(O26="","",G26) -> 2.3 | R26: =IF(O26="","",ROUND(F26*G26*H26,2)) -> 0 | S26: =IF(O26="","",ROUND(O26*Q26,2)-R26) -> 25.3
B27: 2. | C27: ... | E27: gab. | F27: 3 | G27: 1.7 | I27: =IFERROR((F27*G27)*(1-H27), "") -> 5.1 | M27: 2 | N27: =IF(O27="","",C27) -> ... | O27: =IF(ROUND(F27,2)=0,"",ROUND(F27,2)) -> 3 | P27: =IF(O27="","",E27) -> gab. | Q27: =IF(O27="","",G27) -> 1.7 | R27: =IF(O27="","",ROUND(F27*G27*H27,2)) -> 0 | S27: =IF(O27="","",ROUND(O27*Q27,2)-R27) -> 5.1
B28: 3. | C28: ... | E28: gab. | F28: 1 | G28: 10 | H28: 0.1 | I28: 9 | M28: 3 | N28: ... | O28: 1 | P28: gab. | Q28: 10 | R28: 1 | S28: 9
B29: 4. | C29: ... | E29: gab. | F29: 1 | G29: 2 | H29: 0.1 | I29: 1.8 | M29: 4 | N29: ... | O29: 1 | P29: gab. | Q29: 2 | R29: 0.2 | S29: 1.8
B30: 5. | C30: ... | E30: gab. | F30: 10 | G30: 4.5 | I30: 45 | M30: 5 | N30: ... | O30: 10 | P30: gab. | Q30: 4.5 | R30: 0 | S30: 45
B31: 6. | C31: ... | E31: gab. | F31: 10 | G31: 2 | H31: 0.1 | I31: 18 | M31: 6 | N31: ... | O31: 10 | P31: gab. | Q31: 2 | R31: 2 | S31: 18
B32: 7. | C32: ... | E32: gab. | F32: 2 | G32: 4.5 | I32: 9 | M32: 7 | N32: ... | O32: 2 | P32: gab. | Q32: 4.5 | R32: 0 | S32: 9
B33: 8. | C33: ... | E33: gab. | F33: 2 | G33: 4.5 | H33: 0.1 | I33: 8.1 | M33: 8 | N33: ... | O33: 2 | P33: gab. | Q33: 4.5 | R33: 0.9 | S33: 8.1
B34: 9. | C34: ... | E34: gab. | F34: 1 | G34: 18 | H34: 0.1 | I34: =IFERROR((F34*G34)*(1-H34), "") -> 16.2 | M34: 9 | N34: =IF(O34="","",C34) -> ... | O34: =IF(ROUND(F34,2)=0,"",ROUND(F34,2)) -> 1 | P34: =IF(O34="","",E34) -> gab. | Q34: =IF(O34="","",G34) -> 18 | R34: =IF(O34="","",ROUND(F34*G34*H34,2)) -> 1.8 | S34: =IF(O34="","",ROUND(O34*Q34,2)-R34) -> 16.2
B35: 10. | C35: ... | E35: gab. | F35: 3 | G35: 2.7 | I35: 8.1 | M35: 10 | N35: ... | O35: 3 | P35: gab. | Q35: 2.7 | R35: 0 | S35: 8.1
B36: 11. | C36: ... | E36: gab. | F36: 9 | G36: 2.7 | I36: 24.3 | M36: 11 | N36: ... | O36: 9 | P36: gab. | Q36: 2.7 | R36: 0 | S36: 24.3
B37: 12. | C37: ... | E37: gab. | F37: 5 | G37: 2.7 | I37: 13.5 | M37: 12 | N37: ... | O37: 5 | P37: gab. | Q37: 2.7 | R37: 0 | S37: 13.5
B38: 13. | C38: ... | E38: gab. | F38: 3 | G38: 1.7 | I38: 5.1 | M38: 13 | N38: ... | O38: 3 | P38: gab. | Q38: 1.7 | R38: 0 | S38: 5.1
B39: 14. | C39: ... | E39: gab. | F39: 5 | G39: 4.5 | I39: 22.5 | M39: 14 | N39: ... | O39: 5 | P39: gab. | Q39: 4.5 | R39: 0 | S39: 22.5
B40: 15. | C40: ... | E40: gab. | F40: 5 | G40: 3.5 | H40: 0.1 | I40: 15.75 | M40: 15 | N40: ... | O40: 5 | P40: gab. | Q40: 3.5 | R40: 1.75 | S40: 15.75
B41: 16. | C41: ... | E41: gab. | F41: 6 | G41: 2.7 | I41: 16.2 | M41: 16 | N41: ... | O41: 6 | P41: gab. | Q41: 2.7 | R41: 0 | S41: 16.2
B42: 17. | C42: ... | E42: gab. | F42: 4 | G42: 4.5 | I42: 18 | M42: 17 | N42: ... | O42: 4 | P42: gab. | Q42: 4.5 | R42: 0 | S42: 18
B43: 18. | C43: ... | E43: gab. | F43: 2 | G43: 3.5 | H43: 0.1 | I43: 6.3 | M43: 18 | N43: ... | O43: 2 | P43: gab. | Q43: 3.5 | R43: 0.7 | S43: 6.3
B44: 19. | C44: ... | E44: gab. | F44: 12 | G44: 2.7 | I44: 32.4 | M44: 19 | N44: ... | O44: 12 | P44: gab. | Q44: 2.7 | R44: 0 | S44: 32.4
B45: 20. | C45: ... | E45: gab. | F45: 6 | G45: 2.7 | I45: 16.2 | M45: 20 | N45: ... | O45: 6 | P45: gab. | Q45: 2.7 | R45: 0 | S45: 16.2
B46: 21. | C46: ... | E46: gab. | F46: 2 | G46: 4.5 | I46: 9 | M46: 21 | N46: ... | O46: 2 | P46: gab. | Q46: 4.5 | R46: 0 | S46: 9
B47: 22. | C47: ... | E47: gab. | F47: 2 | G47: 3.5 | H47: 0.1 | I47: 6.3 | M47: 22 | N47: ... | O47: 2 | P47: gab. | Q47: 3.5 | R47: 0.7 | S47: 6.3
B48: 23. | C48: ... | E48: gab. | F48: 8 | G48: 2.7 | I48: 21.6 | M48: 23 | N48: ... | O48: 8 | P48: gab. | Q48: 2.7 | R48: 0 | S48: 21.6
B49: 24. | C49: ... | E49: gab. | F49: 7 | G49: 2.7 | I49: 18.9 | M49: 24 | N49: ... | O49: 7 | P49: gab. | Q49: 2.7 | R49: 0 | S49: 18.9
B50: 25. | C50: ... | E50: gab. | F50: 20 | G50: 2.7 | I50: 54 | M50: 25 | N50: ... | O50: 20 | P50: gab. | Q50: 2.7 | R50: 0 | S50: 54
B51: 26. | C51: ... | E51: gab. | F51: 30 | G51: 3 | I51: 90 | M51: 26 | N51: ... | O51: 30 | P51: gab. | Q51: 3 | R51: 0 | S51: 90
B52: 27. | C52: ... | E52: gab. | F52: 16 | G52: 2.7 | I52: 43.2 | M52: 27 | N52: ... | O52: 16 | P52: gab. | Q52: 2.7 | R52: 0 | S52: 43.2
E53: gab. | G53: =IFERROR(VLOOKUP(D53,Preces!B4:C10,2,FALSE), "") ->  | M53: 28
E54: gab. | G54: =IFERROR(VLOOKUP(D54,Preces!B4:C11,2,FALSE), "") ->  | M54: 29
E55: gab. | G55: =IFERROR(VLOOKUP(D55,Preces!B4:C12,2,FALSE), "") ->  | M55: 30
B56: Kopā izsniegts | E56: - | F56: =SUM(F26:F55) -> 186 | G56: - | I56: =SUM(I26:I55) -> 558.85
B57: Pievienotās vērtības nodoklis | E57: 0.21 | H57: summa | I57: =SUMPRODUCT(IFERROR(ROUND(($I$26:$I$55)*$E$57,2),0)) -> 117.35 | R57: [SummaK]: | S57: =SUM(S26:S55) -> 558.85
E58: KOPĀ APMAKSAS SUMMA EUR: | I58: =I56+I57 -> 676.2 | R58: [PVN%]: | S58: =$E$57*100 -> 21
R59: [PVNK]: | S59: =SUMPRODUCT(IFERROR(ROUND($S$26:$S$55*$S$58/100,2),0)) -> 117.35
B60: (ar vārdiem) | D60: =SummaVardiem(I58) -> Seši simti septiņdesmit seši eiro, 20 centi | R60: [Kopa]: | S60: =SUM(S57,S59) -> 676.2
B67: Rēķins ir sagatavots elektroniski un ir derīgs bez paraksta

Sheet Rēķins (hidden)
G2: PAVADZĪME | H2: MZ 005210
B4: 2024.gada 4.martā
B6: Piegādātājs | D6: SIA Mārupes Zieds | F6: Reģ. Nr. | G6: 40003177615
B7: Juridiskā adrese | D7: Marsa gatve 10-10, Rīga, LV-1082 | F7: PVN Nr. | G7: LV40003177615
B8: Kredītiestādes nosaukums | D8: A/S "Swedbank" | F8: Kods | G8: HABALV22
B9: Preču izsniegšanas adrese | D9: Mazā Pils iela 15, Rīga, LV-1050 | F9: konta Nr. | G9: LV18HABA0001408037447
B11: Maksatājs | D11: Ropažu novada pašvaldība | F11: Reģ. Nr. | G11: 90000067986
B12: Preču saņēmējs | D12: Upesleju sākumskola
B13: Juridiskā adrese | D13: Institūta iela 1A, Ulbroka, Stopiņu pag., Ropažu nov., LV-2130 | F13: PVN Nr. | G13: LV90000067986
B14: Faktiskā adrese | D14: =D13 -> Institūta iela 1A, Ulbroka, Stopiņu pag., Ropažu nov., LV-2130
B15: Kredītiestādes nosaukums | D15: AS “SEB banka” | F15: Kods | G15: UNLALV2X
B16: Preču saņemšanas adrese | D16: Skolas iela 12, Upeslejas, Stopiņu pagasts, Ropažu novads, LV-2118 | F16: konta Nr. | G16: LV79UNLA0033300130908
B18: Preču pārvadātājs
B19: Transportlīdzekļa valsts Nr. | D19: ZE40 | E19: Autovadītājs | G19: Elita Bērziņa
B20: Piezīmes | D20: Līguma Nr. 12.1/2024/5
B21: Maksājuma veids: | D21: Pārskaitījums | E21: Apmaksas termiņš: | H21: 19.03.2024.
B24: Nr. | C24: Nosaukums | E24: Mērv. | F24: Daudz. | G24: Cena | H24: Summa
B25: 1. | C25: 28.02.2024 Rozes 40 cm. | E25: gab. | F25: 5 | G25: 1.7 | H25: =F25*G25 -> 8.5
B26: Kopā izsniegts | E26: X | F26: 1 | G26: X | H26: 8.5
B27: Pievienotās vērtības nodoklis | E27: 0.21 | G27: summa | H27: =H26*E27 -> 1.785
E28: KOPĀ APMAKSAS SUMMA EUR: | H28: =H26+H27 -> 10.285
B29: (ar vārdiem) | D29: Astoņdesmit četri euro un 70 centi
B31: Izsniedza: | E31: Pieņēma:
B32: vārds, uzvārds | E32: vārds, uzvārds ___________________________
B33: =B4 -> 2024.gada 4.martā | E33: =B33 -> 2024.gada 4.martā
B35: Paraksts | E35: Paraksts
B36: Rēķins ir sagatavots elektroniski un ir derīgs bez paraksta

Sheet Tiesibas (hidden)
D2: DatumsNo | E2: 2025-05-05 | H2: TisWbName | I2: ThisWbCustId | J2: RN | K2: ActivationDate | L2: CompName/Path | M2: Processor/HddSerialId | N2: PROCESSOR_REVISION | O2: USERNAME
D3: DatumsLidz | E3: 2025-05-15 | H3: EREK | I3: 1 | J3: 25 | K3: 2020-09-09 | L3: - | M3: - | N3: - | O3: -
D4: Skaitītājs (demo versijai)
D6: ThisWbName | E6: EREK
D7: ThisWbCustId | E7: 1
D8: Limenis | E8: D
D10: Nesakonfigurētas tiesības!
D11: Nesakonfigurētas tiesības versijai!
D12: Versijas periods ir beidzies!
D13: Versijas apstrādes uzņēmuma RegNr neatbilst definētam!
D14: Izvelētais RegNr nav definēts šajā versijā!
D15: Lūdzu aizpildiet reģistrācijas numuru!
D16: Versijas Importa/Eksporta skaits sasniedza 20!
D17: Lūdzu veikt faila aktivāciju uz lapas "Instrukcija"!
D18: Fails jau ir aktivizēts šim datoram un lietotājam!
